bitfinex-derivatives/quotes_ETHF0:USTF0_20250101
["timestamp","ask_amount","ask_price","bid_price","bid_amount"]
[1735758997084,3.2078,3347.1,3346.9,0.29945]
[1735758997277,3.2078,3347.1,3347.0,0.4493]
[1735758997778,3.2078,3347.1,3347.0,0.74874]
[1735758997980,3.2078,3347.6,3347.4,0.2994]
[1735758998376,3.2078,3347.6,3347.3,0.29941]
[1735758998576,3.2078,3347.6,3347.1,0.4648]
[1735758998782,3.2078,3347.6,3347.5,0.2994]
[1735758998982,3.2078,3347.6,3347.1,0.4648]
[1735758999382,3.2078,3347.6,3347.4,0.29941]
[1735758999783,3.2078,3347.6,3347.5,0.7489]
[1735758999978,3.2078,3347.6,3347.5,0.4495]
[1735759001277,3.2078,3347.6,3347.5,0.7489]
[1735759005286,3.50719,3347.6,3347.5,0.4495]
[1735759005788,3.2078,3347.6,3347.0,0.4493]
[1735759005989,3.2078,3347.6,3347.2,0.29942]
[1735759005990,0.29941,3347.4,3347.2,0.29942]
[1735759006387,1.2504,3347.5,3347.1,0.29943]
[1735759006585,0.29941,3347.4,3347.2,0.29942]
[1735759007284,1.2504,3347.5,3347.2,0.29942]
[1735759007488,1.2504,3347.5,3347.0,0.4493]
[1735759007489,3.50719,3347.6,3347.3,0.29941]
[1735759007790,3.2078,3347.6,3347.5,0.2994]
[1735759012693,3.2078,3347.6,3347.0,0.4493]
[1735759012896,3.2078,3347.6,3347.2,0.29942]
[1735759013095,3.2078,3347.6,3347.1,0.46816136]
[1735759013399,0.29941,3347.4,3347.3,0.29942]
[1735759015396,0.2994,3347.5,3347.4,0.2994]
[1735759015802,3.50719,3347.6,3347.5,0.2994]
[1735759016101,3.2078,3347.6,3347.5,0.2994]
[1735759020498,0.4551,3348.0,3347.3,3.2078]
[1735759020707,0.29937,3347.9,3347.8,0.29936]
[1735759020890,0.29939,3347.7,3347.6,0.29938]
[1735759021092,0.2994,3347.6,3347.5,0.29939]
[1735759022297,0.29941,3347.5,3347.4,0.29941]
[1735759022700,0.74842,3347.9,3347.3,3.2078]
[1735759023000,1.22711,3347.4,3347.3,3.50721]
[1735759023897,0.9277,3347.4,3347.3,3.50721]
[1735759024299,0.9277,3347.4,3346.9,3.2078]
[1735759024505,0.29946,3346.9,3346.8,0.29945]
[1735759025204,0.29947,3346.7,3346.6,0.29947]
[1735759025500,0.4788,3346.8,3346.7,0.29947]
[1735759025706,0.77826,3346.8,3346.7,0.29947]
[1735759027508,0.4788,3346.8,3346.7,0.29947]
[1735759027902,0.77826,3346.8,3346.7,0.29947]
[1735759028103,1.27636,3346.8,3346.7,0.29947]
[1735759031407,0.9769,3346.8,3346.7,0.29947]
[1735759031600,1.27636,3346.8,3346.7,0.29947]
[1735759033608,0.9769,3346.8,3346.7,0.29947]
[1735759033809,1.27636,3346.8,3346.7,0.29947]
[1735759035410,3.2078,3346.9,3346.8,0.29946]
[1735759037104,0.487,3347.2,3347.1,0.29943]
[1735759037911,0.78642,3347.2,3347.1,0.29943]
[1735759038504,0.487,3347.2,3346.9,0.487]
[1735759038809,3.50725,3347.0,3346.9,0.29945]
[1735759039198,3.2078,3347.0,3346.6,0.487]
[1735759039402,0.4744,3346.9,3346.2,0.74878]
[1735759039601,0.29947,3346.8,3346.3,0.487]
[1735759039802,0.29947,3346.8,3346.7,0.29947]
[1735759041411,0.4744,3346.9,3346.3,0.487]
[1735759041615,0.29948,3346.6,3346.5,0.29948]
[1735759044215,0.29946,3346.8,3346.7,0.29946]
[1735759044912,0.29947,3346.7,3346.6,0.29947]
[1735759045715,3.2078,3347.0,3346.3,0.487]
[1735759046011,0.29946,3346.8,3346.7,0.29946]
[1735759046320,3.2078,3347.0,3346.9,0.29945]
[1735759051508,0.4757,3347.8,3347.5,0.2994]
[1735759051712,0.4757,3347.8,3347.7,0.29938]
[1735759051909,0.9634,3348.3,3348.0,0.29935]
[1735759051910,0.4814,3348.3,3348.0,0.29935]
[1735759052114,0.78073,3348.3,3348.2,0.29934]
[1735759052521,0.78073,3348.3,3348.1,0.29934]
[1735759052925,0.29934,3348.2,3348.1,0.29934]
[1735759054224,0.4814,3348.3,3347.6,0.4502]
[1735759054419,0.4792,3348.4,3347.7,0.74846]
[1735759054632,0.77852,3348.4,3348.3,0.29933]
[1735759055123,0.4792,3348.4,3348.3,0.29933]
[1735759055323,3.2078,3348.5,3347.8,2.2686173]
[1735759055527,3.2078,3348.5,3348.4,0.29932]
[1735759064230,3.50711,3348.5,3348.4,0.29932]
[1735759064529,3.2078,3348.5,3348.4,0.29932]
[1735759067434,0.55062,3348.8,3348.7,0.29929]
[1735759067635,0.08332,3348.8,3348.7,0.29929]
[1735759067830,0.08332,3348.8,3348.7,2.5679073]
[1735759068034,0.08332,3348.8,3348.7,3.0250073]
[1735759069231,0.08332,3348.8,3348.7,0.75639]
[1735759072928,0.08332,3348.8,3348.7,3.96419]
[1735759073135,0.08332,3348.8,3348.7,6.2328073]
[1735759073433,0.08332,3348.8,3348.7,3.96419]
[1735759079336,0.08332,3348.8,3348.7,6.2328073]
[1735759080939,0.08332,3348.8,3348.7,6.70071598]
[1735759081339,0.08332,3348.8,3348.7,6.2328073]
[1735759081632,0.08332,3348.8,3348.7,6.70071594]
[1735759082537,1e-05,3348.8,3348.7,11.70071594]
[1735759082743,0.4697,3349.9,3349.8,0.29919]
[1735759082944,3.2078,3350.3,3350.2,0.29916]
[1735759083339,0.4911,3350.5,3350.4,0.29914]
[1735759083844,0.79023,3350.5,3350.4,0.29914]
[1735759084141,0.29915,3350.4,3350.3,0.29914]
[1735759084334,0.4911,3350.5,3350.0,3.2078]
[1735759084541,0.29917,3350.1,3350.0,3.50697]
[1735759084734,0.29917,3350.1,3350.0,3.2078]
[1735759085243,0.29917,3350.1,3350.0,3.50697]
[1735759085843,0.29917,3350.1,3350.0,3.2078]
[1735759086044,0.29917,3350.1,3350.0,3.50697]
[1735759086350,0.29916,3350.2,3350.1,0.29916]
[1735759086647,0.4911,3350.5,3350.0,3.2078]
[1735759086847,0.29915,3350.3,3350.2,0.29915]
[1735759087938,0.79023,3350.5,3350.4,0.29914]
[1735759088647,0.4911,3350.5,3350.0,3.2078]
[1735759088845,0.29915,3350.3,3350.2,0.29915]
[1735759089149,0.4911,3350.5,3350.1,0.29916]
[1735759089150,0.29916,3350.2,3350.1,0.29916]
[1735759089355,0.29915,3350.3,3350.2,0.29916]
[1735759090749,0.29915,3350.3,3350.1,0.29916]
[1735759091545,0.4911,3350.5,3350.0,3.2078]
[1735759091743,0.29914,3350.4,3350.3,0.29915]
[1735759092049,0.29915,3350.3,3350.2,0.29915]
[1735759092448,0.29914,3350.4,3350.3,0.29915]
[1735759092649,0.29914,3350.4,3350.2,0.29915]
[1735759092837,0.29915,3350.3,3350.2,0.29915]
[1735759094546,0.4911,3350.5,3350.0,3.2078]
[1735759094748,0.29915,3350.4,3350.0,3.2078]
[1735759094950,0.29915,3350.4,3350.2,0.29915]
[1735759095151,0.29915,3350.3,3350.2,0.29915]
[1735759096248,3.2078,3350.4,3349.6,3.6619]
[1735759096448,0.29918,3350.0,3349.9,0.29918]
[1735759096648,3.2078,3350.4,3350.0,0.29917]
[1735759096649,0.29917,3350.1,3350.0,0.29917]
[1735759097650,0.4571,3350.3,3349.9,0.29918]
[1735759097855,3.6679,3350.0,3349.1,3.95593]
[1735759098051,0.2992,3349.7,3349.6,0.29921]
[1735759098251,0.4989,3349.9,3349.2,1.21600083]
[1735759098447,0.4711,3349.6,3349.5,0.29922]
[1735759099749,0.29923,3349.4,3349.1,3.2078]
[1735759099947,0.4711,3349.6,3349.1,3.2078]
[1735759100141,6.6844773,3350.0,3349.1,3.2078]
[1735759100142,3.95576,3350.0,3349.1,3.2078]
[1735759100347,3.95576,3350.0,3349.5,0.29921]
[1735759100348,0.29921,3349.6,3349.5,0.29921]
[1735759100546,0.29922,3349.5,3349.4,0.29922]
[1735759101245,0.4989,3349.8,3349.1,3.2078]
[1735759101449,0.29925,3349.2,3349.1,0.29925]
[1735759101648,0.29925,3349.1,3349.0,0.32547]
[1735759102151,0.29925,3349.2,3349.0,0.02621]
[1735759102347,0.29925,3349.2,3349.1,0.29925]
[1735759102348,0.4911,3349.2,3349.1,0.29925]
[1735759102548,0.4911,3349.2,3349.0,0.32547]
[1735759102748,0.79035,3349.2,3349.0,0.32547]
[1735759103146,0.4911,3349.2,3349.0,0.02621]
[1735759103452,0.29925,3349.1,3349.0,0.02621]
[1735759111959,3.6906,3349.4,3349.0,0.02621]
[1735759112157,0.29923,3349.5,3349.3,0.29923]
[1735759112356,0.29923,3349.5,3349.4,0.4855]
[1735759115157,3.6802,3349.8,3349.4,0.4855]
[1735759115464,3.2078,3349.8,3349.7,0.2992]
[1735759117260,3.2078,3349.8,3349.6,0.2992]
[1735759117657,3.507,3349.8,3349.4,0.4855]
[1735759118155,3.2078,3349.8,3349.7,0.2992]
[1735759118355,3.50699,3349.8,3349.7,0.2992]
[1735759118661,3.2078,3349.8,3349.7,0.2992]
[1735759119165,3.50699,3349.8,3349.7,0.2992]
[1735759120065,0.29921,3349.7,3349.5,0.29922]
[1735759121265,3.50699,3349.9,3349.7,0.29919]
[1735759121563,3.2078,3349.9,3349.4,0.4855]
[1735759121764,0.2992,3349.8,3349.7,0.2992]
[1735759122665,0.2992,3349.8,3349.6,0.2992]
[1735759122867,0.2992,3349.7,3349.6,0.2992]
[1735759124169,3.2078,3349.9,3349.4,0.4855]
[1735759124469,0.29922,3349.5,3349.4,0.4855]
[1735759125464,0.29925,3349.2,3349.1,3.2078]
[1735759125873,0.29925,3349.2,3349.1,3.50705]
[1735759127379,0.29924,3349.3,3349.2,0.29924]
[1735759128073,0.29923,3349.4,3349.3,0.29923]
[1735759129073,0.4783,3349.6,3349.5,0.29922]
[1735759129276,0.77751,3349.6,3349.5,0.29922]
[1735759129568,3.507,3349.8,3349.7,0.2992]
[1735759129972,0.2992,3349.7,3349.6,0.29921]
[1735759132269,3.2078,3349.8,3349.2,0.9734]
[1735759132474,0.29921,3349.6,3349.5,0.29921]
[1735759132674,0.29921,3349.7,3349.6,0.29921]
[1735759133077,3.2078,3349.8,3349.3,2.2686173]
[1735759133275,3.2078,3349.8,3349.7,0.2992]
[1735759133574,3.50699,3349.8,3349.7,0.2992]
[1735759134176,0.2992,3349.7,3349.6,0.2992]
[1735759134373,3.2078,3349.8,3349.4,0.4892]
[1735759134674,3.507,3349.8,3349.7,0.2992]
[1735759135074,0.29921,3349.7,3349.6,0.29921]
[1735759137971,3.2078,3349.9,3349.4,0.4892]
[1735759138179,0.29922,3349.5,3349.4,0.78842]
[1735759139079,0.29922,3349.5,3349.4,0.4892]
[1735759139277,0.29923,3349.4,3349.3,0.29923]
[1735759139869,0.29925,3349.2,3349.1,3.2078]
[1735759140275,0.29925,3349.2,3349.1,3.67572322]
[1735759140775,0.29925,3349.2,3349.1,3.50705]
[1735759141881,0.29925,3349.2,3349.1,3.2078]
[1735759143390,0.29925,3349.1,3349.0,0.02621]
[1735759143585,0.76565,3349.1,3349.0,0.02621]
[1735759143981,0.74822,3348.8,3347.6,9.27206009]
[1735759144186,0.29936,3348.0,3347.8,1.25643347]
[1735759144683,0.4664,3347.9,3347.8,0.78836]
[1735759145984,0.76576,3347.9,3347.8,0.78836]
[1735759146193,0.29939,3347.7,3347.6,0.29939]
[1735759146485,0.29939,3347.7,3347.5,3.2078]
[1735759146486,0.29937,3347.8,3347.7,0.29937]
[1735759146786,0.29939,3347.6,3347.5,3.2078]
[1735759147187,0.29939,3347.6,3347.5,3.5072]
[1735759147391,0.29938,3347.7,3347.6,0.29939]
[1735759147601,3.2078,3348.3,3347.5,3.2078]
[1735759147892,0.29935,3348.1,3348.0,0.29935]
[1735759148289,3.7017,3348.3,3347.5,3.2078]
[1735759148492,0.29936,3348.0,3347.5,3.2078]
[1735759148692,0.29936,3348.0,3347.9,0.29936]
[1735759149497,3.7017,3348.3,3347.6,0.4503]
[1735759149796,0.29935,3348.1,3348.0,0.29935]
[1735759151590,0.29935,3348.1,3347.7,0.4768]
[1735759151591,4.1823,3348.7,3347.9,3.2078]
[1735759151896,0.4915,3348.5,3348.4,0.29932]
[1735759153096,0.4915,3348.5,3348.1,0.9284]
[1735759153291,0.79082,3348.5,3348.2,0.29934]
[1735759153493,0.79082,3348.5,3348.3,0.29932]
[1735759154196,0.4915,3348.5,3348.1,0.9284]
[1735759154387,0.4915,3348.5,3347.9,3.2078]
[1735759154798,0.29934,3348.1,3347.9,3.50716]
[1735759154995,0.4915,3348.5,3347.9,3.2078]
[1735759155298,0.29935,3348.0,3347.9,3.2078]
[1735759155592,0.29935,3348.1,3347.9,3.50716]
[1735759155794,0.4547,3348.0,3347.9,3.50716]
[1735759157499,0.29932,3348.5,3348.3,0.29932]
[1735759157995,0.4547,3348.6,3348.3,0.29932]
[1735759158197,0.29932,3348.4,3348.0,0.4679]
[1735759158389,0.29932,3348.4,3348.2,0.29933]
[1735759158590,0.4547,3348.6,3348.0,0.4679]
[1735759158791,0.4547,3348.6,3348.4,0.29931]
[1735759158792,0.754,3348.6,3348.4,0.29931]
[1735759159199,0.29931,3348.5,3348.3,0.29932]
[1735759159594,0.29931,3348.5,3348.4,0.29932]
[1735759159994,0.754,3348.6,3348.4,0.29932]
[1735759161395,0.4547,3348.6,3348.5,0.29931]
[1735759162900,3.50706,3349.1,3348.4,3.2078]
[1735759163111,0.4553,3349.3,3348.8,3.2078]
[1735759163406,0.4553,3349.3,3349.2,0.29925]
[1735759165298,0.4553,3349.3,3349.0,0.29926]
[1735759165502,0.29927,3349.0,3348.9,0.29927]
[1735759166002,0.29926,3349.1,3349.0,0.29926]
[1735759166598,0.29927,3349.0,3348.9,0.29927]
[1735759167494,0.29926,3349.1,3349.0,0.29926]
[1735759168299,0.4553,3349.3,3348.8,3.2078]
[1735759168496,0.29927,3349.0,3348.9,0.29927]
[1735759169799,0.29926,3349.1,3349.0,0.29925]
[1735759170502,0.4553,3349.3,3348.8,3.2078]
[1735759170707,0.29926,3349.2,3349.1,0.29925]
[1735759171006,0.29927,3349.0,3348.9,0.29927]
[1735759171506,0.29927,3348.9,3348.8,3.50708]
[1735759172005,0.29927,3349.0,3348.9,0.29927]
[1735759172209,0.29927,3348.9,3348.8,3.50708]
[1735759172496,0.29927,3348.9,3348.8,0.29928]
[1735759172901,0.29927,3349.0,3348.9,0.29927]
[1735759173604,0.29926,3349.1,3349.0,0.29926]
[1735759173806,3.2078,3349.2,3348.6,4.171]
[1735759174004,0.29922,3349.5,3348.7,0.74823]
[1735759174205,0.29922,3349.5,3349.4,0.29923]
[1735759174404,4.1594,3349.6,3348.6,4.171]
[1735759174608,4.1594,3349.6,3348.8,1.21614821]
[1735759174904,0.29923,3349.4,3349.3,0.29923]
[1735759176503,4.1594,3349.6,3348.8,0.74821]
[1735759176699,4.1594,3349.6,3349.4,0.29923]
[1735759176700,0.29922,3349.5,3349.4,0.29923]
[1735759177101,4.45861,3349.6,3349.5,0.29922]
[1735759177303,0.29922,3349.5,3349.4,0.29922]
[1735759178211,3.7038,3349.6,3349.2,0.4711]
[1735759178406,0.29923,3349.4,3349.3,0.29923]
[1735759179204,0.29922,3349.5,3349.4,0.29922]
[1735759179411,0.29922,3349.5,3349.3,0.29923]
[1735759179809,0.29922,3349.5,3349.4,0.29923]
[1735759180815,4.00301,3349.6,3349.5,0.29922]
[1735759181209,3.50701,3349.6,3349.5,0.29922]
[1735759183716,3.6831,3350.0,3349.2,3.6789]
[1735759184016,2.997,3351.8,3349.2,3.6789]
[1735759184017,0.4797,3350.1,3350.0,0.29917]
[1735759184217,3.2078,3350.5,3349.7,4.1715]
[1735759184515,0.29915,3350.4,3350.2,0.29915]
[1735759184911,3.2078,3350.5,3349.8,0.4846]
[1735759185105,0.29918,3350.0,3349.9,0.29918]
[1735759185311,0.29919,3349.9,3349.8,0.29919]
[1735759185711,0.74787,3350.4,3349.8,0.29919]
[1735759185912,0.29918,3350.0,3349.8,0.29919]
[1735759186214,0.29917,3350.1,3349.9,0.29918]
[1735759186412,0.29917,3350.0,3349.9,0.29918]
[1735759186720,0.29919,3349.9,3349.8,0.29919]
[1735759188717,0.29919,3349.9,3349.7,4.1715]
[1735759188718,3.2078,3350.5,3349.7,4.1715]
[1735759188924,0.29917,3350.1,3350.0,0.29917]
[1735759189217,0.29919,3349.9,3349.8,0.29919]
[1735759191523,0.74785,3350.4,3349.7,3.9939]
[1735759191524,0.29919,3349.8,3349.7,3.9939]
[1735759194625,0.29919,3349.8,3349.7,3.2078]
[1735759194825,0.29921,3349.6,3349.5,0.29921]
[1735759195330,0.29921,3349.7,3349.6,0.2992]
[1735759196325,0.491,3350.0,3349.4,0.4755]
[1735759196519,4.1364,3350.1,3349.4,0.4755]
[1735759196520,3.6795,3350.1,3349.4,0.4755]
[1735759196826,3.6795,3350.1,3350.0,0.29917]
[1735759197224,3.6795,3350.1,3350.0,41.09917]
[1735759197624,3.6795,3350.1,3350.0,0.29917]
[1735759199926,4.1534,3350.5,3350.4,0.29914]
[1735759200132,3.2078,3350.5,3350.4,0.29914]
[1735759201032,0.4796,3350.8,3350.7,0.29911]
[1735759202031,3.2078,3351.1,3350.5,0.9539]
[1735759202230,0.7628,3350.9,3350.7,0.29911]
[1735759202931,0.7628,3350.9,3350.8,0.2991]
[1735759203227,0.4637,3350.9,3350.8,0.2991]
[1735759203434,3.2078,3351.1,3351.0,0.29908]
[1735759203733,3.6715,3351.7,3351.0,3.2078]
[1735759204034,3.6715,3351.7,3351.6,0.29903]
[1735759204227,0.4637,3351.7,3351.6,0.29903]
[1735759204430,4.1257,3352.2,3351.5,2.26568742]
[1735759204927,0.299,3352.0,3351.5,2.26568742]
[1735759205234,0.299,3352.0,3351.7,0.29902]
[1735759205536,4.1257,3352.2,3351.7,0.29902]
[1735759205833,0.299,3352.0,3351.7,0.29902]
[1735759206428,4.1257,3352.2,3351.6,0.29903]
[1735759206429,0.29901,3351.9,3351.6,0.29903]
[1735759206623,4.1257,3352.2,3351.4,3.2078]
[1735759206931,0.29902,3351.8,3351.5,0.29903]
[1735759207123,4.1257,3352.2,3351.5,0.29903]
[1735759207324,0.29906,3351.3,3351.1,0.5048]
[1735759207526,0.29906,3351.3,3351.1,0.80387]
[1735759207727,3.50685,3351.4,3351.2,0.29906]
[1735759207928,0.29905,3351.4,3351.2,0.29906]
[1735759208329,0.29905,3351.4,3351.1,0.80387]
[1735759209023,0.29905,3351.4,3351.1,0.5048]
[1735759209228,0.29904,3351.5,3351.3,0.29905]
[1735759209533,0.29904,3351.5,3351.2,0.29906]
[1735759210133,0.29903,3351.6,3351.2,0.29906]
[1735759210333,0.29905,3351.5,3351.2,0.29906]
[1735759210535,0.29905,3351.5,3351.2,0.29907]
[1735759211137,0.29906,3351.3,3351.1,0.5048]
[1735759211539,0.29906,3351.3,3351.1,0.80388]
[1735759211836,0.29907,3351.3,3351.0,0.29908]
[1735759212025,0.477,3351.2,3350.9,3.2078]
[1735759212224,0.477,3351.2,3351.1,0.29908]
[1735759212737,0.29903,3351.6,3351.3,0.29905]
[1735759212939,0.4681,3351.7,3351.3,0.29905]
[1735759213239,0.29906,3351.4,3351.1,0.29907]
[1735759213437,0.4681,3351.7,3351.0,0.29908]
[1735759213438,0.29905,3351.5,3351.0,0.29908]
[1735759213746,0.4681,3351.7,3351.2,0.29906]
[1735759214237,0.29905,3351.4,3350.9,5.47348742]
[1735759214437,0.29907,3351.2,3351.0,0.29908]
[1735759214639,0.29907,3351.2,3350.9,3.2078]
[1735759214838,0.4877,3351.1,3351.0,0.29908]
[1735759216837,0.4877,3351.1,3350.7,0.492]
[1735759217137,0.29911,3350.8,3350.0,0.9483]
[1735759217441,0.29911,3350.8,3350.5,0.29912]
[1735759217645,3.2078,3350.9,3350.7,0.29911]
[1735759217845,3.5069,3350.9,3350.7,0.29911]
[1735759218049,3.2078,3350.9,3350.3,40.8]
[1735759218337,3.2078,3350.9,3350.8,0.2991]
[1735759219143,3.2078,3351.3,3350.5,3.2078]
[1735759219338,3.2078,3351.3,3351.2,0.29907]
[1735759219539,0.29904,3351.5,3351.3,0.29906]
[1735759221943,0.29904,3351.5,3351.2,0.29906]
[1735759222939,0.29904,3351.5,3351.3,0.29906]
[1735759224843,0.4833,3351.6,3351.0,4.1843]
[1735759225047,0.29905,3351.4,3351.2,0.29906]
[1735759226037,0.4833,3351.6,3351.0,4.1843]
[1735759226238,2.74898742,3351.6,3351.0,3.6921]
[1735759226442,3.50688,3351.1,3351.0,0.4843]
[1735759226838,3.50688,3351.1,3350.9,0.29909]
[1735759227049,0.78859,3351.0,3350.8,0.2991]
[1735759227749,0.4895,3351.0,3350.7,0.475]
[1735759227946,0.2991,3350.9,3350.7,0.29911]
[1735759228146,2.75518742,3351.0,3350.3,3.2078]
[1735759228445,0.29914,3350.4,3350.3,3.2078]
[1735759228748,2.26568742,3350.7,3350.3,3.50695]
[1735759228749,0.29913,3350.5,3350.3,3.50695]
[1735759229144,0.29916,3350.2,3350.0,0.29917]
[1735759229350,2.26568742,3350.1,3349.7,0.2992]
[1735759229540,0.29919,3349.9,3349.7,0.2992]
[1735759230443,0.29919,3349.9,3349.8,0.01394266]
[1735759230844,0.29919,3349.9,3349.8,0.01928536]
[1735759231645,3.50698,3349.9,3349.8,0.02462806]
[1735759232037,3.50698,3349.9,3349.8,0.02997076]
[1735759232749,3.50698,3349.9,3349.8,0.03531346]
[1735759234849,3.2078,3349.9,3349.8,0.03531346]
[1735759235051,3.2078,3349.9,3349.8,0.33450346]
[1735759236251,3.50698,3349.9,3349.8,0.33450346]
[1735759236447,3.50698,3349.9,3349.8,0.29919]
[1735759236652,3.50698,3349.9,3349.8,0.38000664]
[1735759236850,3.50698,3349.9,3349.8,0.08081664]
[1735759237052,3.2078,3349.9,3349.8,0.27300057]
[1735759237350,3.50698,3349.9,3349.8,0.27300057]
[1735759239353,3.50698,3349.9,3349.8,0.31857743]
[1735759239949,3.50698,3349.9,3349.8,0.36415429]
[1735759240347,3.50698,3349.9,3349.8,0.66334429]
[1735759240549,3.50698,3349.9,3349.8,0.67581845]
[1735759240955,3.50698,3349.9,3349.8,0.37662845]
[1735759241856,3.50698,3349.9,3349.8,0.67581845]
[1735759242051,3.50698,3349.9,3349.8,0.37662845]
[1735759242743,3.50698,3349.9,3349.8,0.72154066]
[1735759242948,3.50698,3349.9,3349.8,0.42235066]
[1735759243350,3.50698,3349.9,3349.8,0.45712047]
[1735759244655,3.50698,3349.9,3349.8,0.80203268]
[1735759245153,3.50698,3349.9,3349.8,0.50284268]
[1735759245455,3.50698,3349.9,3349.8,0.83680249]
[1735759246058,3.50698,3349.9,3349.8,0.53761249]
[1735759246858,3.50698,3349.9,3349.8,0.58333324]
[1735759247058,3.99748,3349.9,3349.8,0.58333324]
[1735759247356,3.6983,3349.9,3349.8,0.61810451]
[1735759247555,3.99748,3349.9,3349.8,0.61810451]
[1735759249151,3.99748,3349.9,3349.8,0.66419634]
[1735759249555,3.6983,3349.9,3349.8,0.71028817]
[1735759249760,3.99748,3349.9,3349.8,0.71028817]
[1735759250254,3.99748,3349.9,3349.8,0.75638]
[1735759252257,3.99748,3349.9,3349.8,0.80247013]
[1735759254561,3.99748,3349.9,3349.8,0.82179542]
[1735759254562,3.6983,3349.9,3349.8,0.82179542]
[1735759254861,3.99748,3349.9,3349.8,0.82179542]
[1735759255559,3.99748,3349.9,3349.8,0.85032353]
[1735759258057,3.6983,3349.9,3349.3,0.4826]
[1735759258258,0.29923,3349.4,3349.3,0.4826]
[1735759259064,0.29923,3349.4,3349.3,0.52344225]
[1735759259253,0.29923,3349.4,3349.3,1.02384225]
[1735759260468,2.72328742,3349.8,3349.3,1.02384225]
[1735759260469,0.29919,3349.8,3349.6,0.2992]
[1735759260663,0.2992,3349.7,3349.6,0.2992]
[1735759261364,0.2992,3349.7,3349.6,0.36153425]
[1735759263069,0.2992,3349.7,3349.6,0.06233425]
[1735759263665,0.7829,3349.7,3349.6,0.06233425]
[1735759266570,0.29927,3348.9,3348.8,0.78878]
[1735759266770,3.2078,3349.1,3348.8,0.4895]
[1735759267071,3.2078,3349.1,3349.0,0.29926]
[1735759267874,3.2078,3349.1,3348.8,0.78878]
[1735759268171,0.29926,3349.0,3348.9,0.4852]
[1735759268371,0.29926,3349.0,3348.9,0.78447]
[1735759269169,3.2078,3349.1,3349.0,0.29926]
[1735759269572,0.29924,3349.3,3348.9,3.693]
[1735759269770,7.14218742,3349.7,3348.9,0.4852]
[1735759270272,0.29923,3349.5,3349.4,0.29923]
[1735759270665,3.6915,3349.7,3349.0,40.8]
[1735759270865,0.29924,3349.3,3349.2,0.29924]
[1735759271376,0.29923,3349.4,3349.3,0.29924]
[1735759271875,0.29924,3349.3,3349.2,0.29924]
[1735759272871,0.29923,3349.4,3349.3,0.29923]
[1735759273972,3.6915,3349.7,3349.1,0.29925]
[1735759274179,0.29925,3349.2,3349.1,0.29925]
[1735759274481,0.29925,3349.2,3349.1,0.46792088]
[1735759274668,0.29925,3349.2,3349.1,0.76717088]
[1735759274876,0.29925,3349.2,3349.1,0.29925]
[1735759276781,0.29924,3349.3,3349.2,0.29924]
[1735759276973,0.29923,3349.4,3349.3,0.29923]
[1735759279680,3.6915,3349.7,3349.0,0.4943]
[1735759279887,0.29923,3349.5,3349.4,0.29922]
[1735759280281,0.29921,3349.6,3349.3,0.29924]
[1735759280483,0.29924,3349.4,3349.3,0.29924]
[1735759280882,0.29924,3349.3,3349.2,0.29924]
[1735759281086,0.29925,3349.2,3349.1,3.50705]
[1735759281286,0.29924,3349.3,3349.2,0.29924]
[1735759282586,5.95718742,3349.7,3349.0,0.4943]
[1735759282782,5.95718742,3349.7,3348.8,0.4895]
[1735759282783,0.74807,3349.5,3348.8,0.4895]
[1735759282988,3.2078,3349.3,3348.7,0.29929]
[1735759283189,0.29925,3349.1,3348.6,0.75999]
[1735759283386,1.20312,3349.2,3348.6,0.4607]
[1735759283387,1.68832,3349.2,3348.6,0.4607]
[1735759283586,1.68832,3349.2,3348.7,0.29928]
[1735759283881,1.68832,3349.2,3348.6,0.4607]
[1735759284190,0.29929,3348.7,3348.6,0.2993]
[1735759284792,2.26568742,3349.1,3348.7,0.29928]
[1735759284991,2.26568742,3349.1,3348.5,0.4646]
[1735759285184,0.2993,3348.7,3348.6,0.2993]
[1735759286899,0.2993,3348.6,3348.5,0.7639]
[1735759287498,0.2993,3348.6,3348.5,0.4646]
[1735759287698,0.29933,3348.3,3348.1,0.29934]
[1735759287899,0.29933,3348.3,3348.0,0.4596]
[1735759288405,0.29933,3348.3,3348.2,0.29934]
[1735759288804,3.2078,3348.5,3348.0,0.4596]
[1735759289101,0.4921,3348.7,3348.1,3.2078]
[1735759289298,0.2993,3348.6,3348.4,0.29931]
[1735759290896,0.2993,3348.6,3348.1,3.2078]
[1735759291106,0.29932,3348.4,3348.2,0.29933]
[1735759291910,0.29933,3348.3,3348.1,3.50714]
[1735759292203,0.29934,3348.2,3348.1,3.2078]
[1735759292408,0.77134,3348.2,3348.1,3.2078]
[1735759292606,0.77134,3348.2,3348.1,3.50714]
[1735759292808,0.77134,3348.2,3348.1,3.2078]
[1735759293210,0.472,3348.2,3348.1,3.2078]
[1735759293409,0.472,3348.2,3348.1,3.50714]
[1735759293908,0.77134,3348.2,3348.1,3.50714]
[1735759295906,0.472,3348.2,3348.1,3.50714]
[1735759297614,0.472,3348.2,3348.1,0.29934]
[1735759298002,0.77134,3348.2,3348.1,0.29934]
[1735759298210,0.472,3348.2,3347.9,3.50716]
[1735759298413,0.29935,3348.0,3347.9,3.2078]
[1735759299510,0.29939,3347.6,3347.5,0.78069]
[1735759299708,0.2994,3347.5,3347.4,3.5072]
[1735759299916,0.7944,3347.5,3347.4,3.5072]
[1735759300221,0.7944,3347.5,3347.4,3.2078]
[1735759300514,0.29941,3347.4,3347.0,0.4677]
[1735759300707,0.29941,3347.4,3347.3,0.29942]